Workbook

Sheet Title
M7: 2090
A25: Image credit: sardenacarlo / Pixabay

Sheet Jan
A1: Sales Report
B3: Week 1 | C3: Week 2 | D3: Week 3 | E3: Week 4 | F3: Week 5
A4: Andy | B4: =RANDBETWEEN(1000,2000) -> 1087 | C4: 1133 | D4: 1260 | E4: 1304 | F4: 1701
A5: Betty | B5: 1477 | C5: 1880 | D5: 1627 | E5: 1027 | F5: 1944
A6: Claire | B6: 1032 | C6: 1934 | D6: 1689 | E6: 1493 | F6: 1242
A7: Dale | B7: 1788 | C7: 1699 | D7: 1947 | E7: 1712 | F7: 1144
A8: Eddy | B8: 1265 | C8: 1794 | D8: 1459 | E8: 1894 | F8: 1143
A9: Flo | B9: 1983 | C9: 1586 | D9: 1428 | E9: 1954 | F9: 1013
A10: Gloria | B10: 1976 | C10: 1841 | D10: 1197 | E10: 1591 | F10: 1787

Sheet Feb
A1: Sales Report
B3: Week 1 | C3: Week 2 | D3: Week 3 | E3: Week 4 | F3: Week 5
A4: Andy | B4: =RANDBETWEEN(1000,2000) -> 1809 | C4: 1977 | D4: 1270 | E4: 1602 | F4: 1375
A5: Betty | B5: 1115 | C5: 1185 | D5: 1821 | E5: 1641 | F5: 1486
A6: Claire | B6: 1392 | C6: 1969 | D6: 1970 | E6: 1696 | F6: 1577
A7: Dale | B7: 1999 | C7: 1731 | D7: 1728 | E7: 1922 | F7: 1905
A8: Eddy | B8: 1031 | C8: 1324 | D8: 1743 | E8: 1270 | F8: 1520
A9: Flo | B9: 1698 | C9: 1626 | D9: 1008 | E9: 1798 | F9: 1558
A10: Gloria | B10: 1987 | C10: 1210 | D10: 1636 | E10: 1382 | F10: 1962

Sheet Mar
A1: Sales Report
B3: Week 1 | C3: Week 2 | D3: Week 3 | E3: Week 4 | F3: Week 5
A4: Andy | B4: =RANDBETWEEN(1000,2000) -> 1105 | C4: 1278 | D4: 1628 | E4: 1022 | F4: 1109
A5: Betty | B5: 1067 | C5: 1759 | D5: 1987 | E5: 1137 | F5: 1680
A6: Claire | B6: 1327 | C6: 1489 | D6: 1907 | E6: 1831 | F6: 1934
A7: Dale | B7: 1293 | C7: 1727 | D7: 1537 | E7: 1942 | F7: 1676
A8: Eddy | B8: 1826 | C8: 1883 | D8: 1170 | E8: 1366 | F8: 1632
A9: Flo | B9: 1092 | C9: 1126 | D9: 1367 | E9: 1734 | F9: 1195
A10: Gloria | B10: 1860 | C10: 1805 | D10: 1765 | E10: 1865 | F10: 1987

Sheet Apr
A1: Sales Report
B3: Week 1 | C3: Week 2 | D3: Week 3 | E3: Week 4 | F3: Week 5
A4: Andy | B4: =RANDBETWEEN(1000,2000) -> 1116 | C4: 1003 | D4: 1468 | E4: 1279 | F4: 1492
A5: Betty | B5: 1605 | C5: 1295 | D5: 1602 | E5: 1521 | F5: 1817
A6: Claire | B6: 1889 | C6: 1421 | D6: 1632 | E6: 1221 | F6: 1531
A7: Dale | B7: 1214 | C7: 1027 | D7: 1400 | E7: 1873 | F7: 1745
A8: Eddy | B8: 1499 | C8: 1047 | D8: 1763 | E8: 1143 | F8: 1697
A9: Flo | B9: 1373 | C9: 1805 | D9: 1762 | E9: 1560 | F9: 1755
A10: Gloria | B10: 1661 | C10: 1664 | D10: 1718 | E10: 1563 | F10: 1768

Sheet May
A1: Sales Report
B3: Week 1 | C3: Week 2 | D3: Week 3 | E3: Week 4 | F3: Week 5
A4: Andy | B4: =RANDBETWEEN(1000,2000) -> 1734 | C4: 1852 | D4: 1382 | E4: 1619 | F4: 1702
A5: Betty | B5: 1940 | C5: 1677 | D5: 1339 | E5: 1080 | F5: 1980
A6: Claire | B6: 1420 | C6: 1582 | D6: 1571 | E6: 1902 | F6: 1090
A7: Dale | B7: 1711 | C7: 1298 | D7: 1606 | E7: 1411 | F7: 1203
A8: Eddy | B8: 1756 | C8: 1064 | D8: 1117 | E8: 1117 | F8: 1121
A9: Flo | B9: 1327 | C9: 1224 | D9: 1280 | E9: 1775 | F9: 1673
A10: Gloria | B10: 1448 | C10: 1991 | D10: 1441 | E10: 1941 | F10: 1606

Sheet Jun
A1: Sales Report
B3: Week 1 | C3: Week 2 | D3: Week 3 | E3: Week 4 | F3: Week 5
A4: Andy | B4: =RANDBETWEEN(1000,2000) -> 1991 | C4: 1433 | D4: 1917 | E4: 1960 | F4: 1283
A5: Betty | B5: 1373 | C5: 1778 | D5: 1232 | E5: 1586 | F5: 1764
A6: Claire | B6: 1898 | C6: 1767 | D6: 1718 | E6: 1756 | F6: 1070
A7: Dale | B7: 1405 | C7: 1222 | D7: 1543 | E7: 1051 | F7: 1194
A8: Eddy | B8: 1131 | C8: 1198 | D8: 1945 | E8: 1425 | F8: 1781
A9: Flo | B9: 1706 | C9: 1466 | D9: 1018 | E9: 1338 | F9: 1007
A10: Gloria | B10: 1112 | C10: 1890 | D10: 1400 | E10: 1062 | F10: 1286

Sheet Jul
A1: Sales Report
B3: Week 1 | C3: Week 2 | D3: Week 3 | E3: Week 4 | F3: Week 5
A4: Andy | B4: =RANDBETWEEN(1000,2000) -> 1806 | C4: 1967 | D4: 1939 | E4: 1347 | F4: 1104
A5: Betty | B5: 1517 | C5: 1873 | D5: 1084 | E5: 1347 | F5: 1661
A6: Claire | B6: 1624 | C6: 1286 | D6: 1769 | E6: 1998 | F6: 1618
A7: Dale | B7: 1148 | C7: 1880 | D7: 1449 | E7: 1575 | F7: 1364
A8: Eddy | B8: 1665 | C8: 1855 | D8: 1462 | E8: 1449 | F8: 1541
A9: Flo | B9: 1840 | C9: 1020 | D9: 1059 | E9: 1458 | F9: 1063
A10: Gloria | B10: 1948 | C10: 1564 | D10: 1306 | E10: 1194 | F10: 1104

Sheet Aug
A1: Sales Report
B3: A | C3: Week 2 | D3: Week 3 | E3: Week 4 | F3: Week 5
A4: Andy | B4: =RANDBETWEEN(1000,2000) -> 1168 | C4: 1928 | D4: 1849 | E4: 1716 | F4: 1548
A5: Betty | B5: 1628 | C5: 1125 | D5: 1160 | E5: 1503 | F5: 1503
A6: Claire | B6: 1619 | C6: 1829 | D6: 1443 | E6: 1302 | F6: 1529
A7: Dale | B7: 1455 | C7: 1829 | D7: 1657 | E7: 1249 | F7: 1343
A8: Eddy | B8: 1702 | C8: 1700 | D8: 1609 | E8: 1472 | F8: 1814
A9: Flo | B9: 1350 | C9: 1261 | D9: 1692 | E9: 1146 | F9: 1334
A10: Gloria | B10: 1171 | C10: 1272 | D10: 1049 | E10: 1102 | F10: 1990

Sheet Sep
A1: Sales Report
B3: Week 1 | C3: Week 2 | D3: Week 3 | E3: Week 4 | F3: Week 5
A4: Andy | B4: =RANDBETWEEN(1000,2000) -> 1580 | C4: 1287 | D4: 1387 | E4: 1535 | F4: 1074
A5: Betty | B5: 1171 | C5: 1366 | D5: 1814 | E5: 1725 | F5: 1272
A6: Claire | B6: 1218 | C6: 1419 | D6: 1284 | E6: 1875 | F6: 1835
A7: Dale | B7: 1618 | C7: 1036 | D7: 1678 | E7: 1755 | F7: 1690
A8: Eddy | B8: 1563 | C8: 1779 | D8: 1263 | E8: 1186 | F8: 1183
A9: Flo | B9: 1159 | C9: 1038 | D9: 1595 | E9: 1095 | F9: 2000
A10: Gloria | B10: 1141 | C10: 1001 | D10: 1193 | E10: 1496 | F10: 1052

Sheet Oct
A1: Sales Report
B3: Week 1 | C3: Week 2 | D3: Week 3 | E3: Week 4 | F3: Week 5
A4: Andy | B4: =RANDBETWEEN(1000,2000) -> 1257 | C4: 1068 | D4: 1318 | E4: 1708 | F4: 1593
A5: Betty | B5: 1867 | C5: 1301 | D5: 1701 | E5: 1590 | F5: 1192
A6: Claire | B6: 1610 | C6: 1418 | D6: 1957 | E6: 1637 | F6: 1997
A7: Dale | B7: 1414 | C7: 1526 | D7: 1229 | E7: 1817 | F7: 1477
A8: Eddy | B8: 1555 | C8: 1648 | D8: 1307 | E8: 1904 | F8: 1084
A9: Flo | B9: 1027 | C9: 1733 | D9: 1375 | E9: 1218 | F9: 1255
A10: Gloria | B10: 1412 | C10: 1811 | D10: 1031 | E10: 1752 | F10: 1490

Sheet Nov
A1: Sales Report
B3: Week 1 | C3: Week 2 | D3: Week 3 | E3: Week 4 | F3: Week 5
A4: Andy | B4: =RANDBETWEEN(1000,2000) -> 1655 | C4: 1913 | D4: 1034 | E4: 1940 | F4: 1557
A5: Betty | B5: 1376 | C5: 1883 | D5: 1530 | E5: 1637 | F5: 1804
A6: Claire | B6: 1529 | C6: 1575 | D6: 1924 | E6: 1766 | F6: 1560
A7: Dale | B7: 1648 | C7: 1217 | D7: 1086 | E7: 1725 | F7: 1601
A8: Eddy | B8: 1121 | C8: 1668 | D8: 1077 | E8: 1950 | F8: 1544
A9: Flo | B9: 1883 | C9: 1010 | D9: 1749 | E9: 1202 | F9: 1271
A10: Gloria | B10: 1739 | C10: 1274 | D10: 1561 | E10: 1104 | F10: 1620

Sheet Dec
A1: Sales Report
B3: Week 1 | C3: Week 2 | D3: Week 3 | E3: Week 4 | F3: Week 5
A4: Andy | B4: =RANDBETWEEN(1000,2000) -> 1905 | C4: 1222 | D4: 1429 | E4: 1968 | F4: 1287
A5: Betty | B5: 1934 | C5: 1551 | D5: 1725 | E5: 1481 | F5: 1250
A6: Claire | B6: 1299 | C6: 1667 | D6: 1360 | E6: 1404 | F6: 1555
A7: Dale | B7: 1822 | C7: 1347 | D7: 1361 | E7: 1702 | F7: 1338
A8: Eddy | B8: 1223 | C8: 1031 | D8: 1215 | E8: 1259 | F8: 1204
A9: Flo | B9: 1611 | C9: 1400 | D9: 1363 | E9: 1498 | F9: 1198
A10: Gloria | B10: 1222 | C10: 1436 | D10: 1381 | E10: 1616 | F10: 1392

Sheet Total
A1: Total Sales for Entire Year
B3: =SUM(Jan:Dec!B4:F10) -> 632639 | C3: =_xlfn.FORMULATEXT(B3) -> =SUM(Jan:Dec!B4:F10)

Sheet YTD
A1: Sales Report YTD Total
B3: Week 1 | C3: Week 2 | D3: Week 3 | E3: Week 4 | F3: Week 5 | G3: Total
A4: Andy | B4: =SUM(Jan:Dec!B4) -> 18213 | C4: =SUM(Jan:Dec!C4) -> 18061 | D4: =SUM(Jan:Dec!D4) -> 17881 | E4: =SUM(Jan:Dec!E4) -> 19000 | F4: =SUM(Jan:Dec!F4) -> 16825 | G4: =SUM(B4:F4) -> 89980
A5: Betty | B5: =SUM(Jan:Dec!B5) -> 18070 | C5: =SUM(Jan:Dec!C5) -> 18673 | D5: =SUM(Jan:Dec!D5) -> 18622 | E5: =SUM(Jan:Dec!E5) -> 17275 | F5: =SUM(Jan:Dec!F5) -> 19353 | G5: 91993
A6: Claire | B6: =SUM(Jan:Dec!B6) -> 17857 | C6: =SUM(Jan:Dec!C6) -> 19356 | D6: =SUM(Jan:Dec!D6) -> 20224 | E6: =SUM(Jan:Dec!E6) -> 19881 | F6: =SUM(Jan:Dec!F6) -> 18538 | G6: 95856
A7: Dale | B7: =SUM(Jan:Dec!B7) -> 18515 | C7: =SUM(Jan:Dec!C7) -> 17539 | D7: =SUM(Jan:Dec!D7) -> 18221 | E7: =SUM(Jan:Dec!E7) -> 19734 | F7: =SUM(Jan:Dec!F7) -> 17680 | G7: 91689
A8: Eddy | B8: =SUM(Jan:Dec!B8) -> 17337 | C8: =SUM(Jan:Dec!C8) -> 17991 | D8: =SUM(Jan:Dec!D8) -> 17130 | E8: =SUM(Jan:Dec!E8) -> 17435 | F8: =SUM(Jan:Dec!F8) -> 17264 | G8: 87157
A9: Flo | B9: =SUM(Jan:Dec!B9) -> 18049 | C9: =SUM(Jan:Dec!C9) -> 16295 | D9: =SUM(Jan:Dec!D9) -> 16696 | E9: =SUM(Jan:Dec!E9) -> 17776 | F9: =SUM(Jan:Dec!F9) -> 16322 | G9: 85138
A10: Gloria | B10: =SUM(Jan:Dec!B10) -> 18677 | C10: =SUM(Jan:Dec!C10) -> 18759 | D10: =SUM(Jan:Dec!D10) -> 16678 | E10: =SUM(Jan:Dec!E10) -> 17668 | F10: =SUM(Jan:Dec!F10) -> 19044 | G10: 90826
A11: Total | B11: =SUM(B4:B10) -> 126718 | C11: =SUM(C4:C10) -> 126674 | D11: =SUM(D4:D10) -> 125452 | E11: =SUM(E4:E10) -> 128769 | F11: =SUM(F4:F10) -> 125026 | G11: 632639

Sheet Wrap Up
A1: Topics in this Episode
B3: Sum a rectangular range on all worksheets
B4: =SUM(
B5: Click on Jan sheet
B6: point to the range
B7: Shift-Click on Dec sheet
B8: press Enter
B9: Or, type =SUM(Jan:Dec!B4)
B10: Bonus trick: Adding Total Row & Column in one click of AutoSum
